Workbook

Sheet Rates and Allowances (hidden)
A1: Income Tax | H1: Born
A2: Personal Allowance (1) | B2: 12570 | H2: After 5 April 1948 | I2: 1 | J2: 10000
A3: Income limit for Personal Allowance | B3: 100000 | H3: Before 6 April 1938 | I3: 2 | J3: 10660
A4: Personal Allowance for people aged 65-74 (1)(2) | B4: 10600 | C4: =B4-B2 -> -1970 | E4: =(C4*2)+B5 -> 23760 | H4: Between 6 April 1938 and 5 April 1948 | I4: 3 | J4: 10500 | L4: grey boxes not used
A5: Income limit for age-related allowances | B5: 27700
A7: (1) From the 2010-11 tax year the Personal Allowance reduces where the income is above £100, 000 - by £1 for every £2 of income above the £100,000 limit. This reduction applies irrespective of age.
A8: (2) These allowances reduce where the income is above the income limit for age - related allowances - by £1 for every £2 of income above the limit. From the 2010-11 tax year the Personal Allowance
A9: for people aged over 65 can be reduced below the basic Personal Allowance where the income is above £100,000.
A11: Income Tax rates and taxable bands SRIT | I11: Inserted for combined results
A12: Rate | I12: SRIT | J12: UKIT | K12: Scot Limit | L12: UK Limit | O12: for srit bands
A13: Starter rate | B13: =IF(Summary!$F$6="Yes",I13,J13) -> 0 | C13: 0 | D13: to | E13: =IF(Summary!$F$6="Yes",K13,L13) -> 0 | I13: 0.19 | J13: 0 | K13: 2827 | L13: 0 | M13: =B2+K13 -> 15397 | O13: 15397 | P13: 12571 | Q13: =O13-P13 -> 2826
A14: Basic rate | B14: =IF(Summary!$F$6="Yes",I14,J14) -> 0.2 | C14: =E13 -> 0 | E14: =IF(Summary!$F$6="Yes",K14,L14)+E13 -> 37700 | I14: 0.2 | J14: 0.2 | K14: 12094 | L14: 37700 | M14: =K13+K14+B2 -> 27491 | O14: 27491 | P14: 15398 | Q14: =O14-P14 -> 12093
A15: Intermediate rate | B15: =IF(Summary!$F$6="Yes",I15,J15) -> 0 | C15: =E14 -> 37700 | E15: =IF(Summary!$F$6="Yes",K15,L15)+E14 -> 37700 | I15: 0.21 | J15: 0 | K15: 16171 | L15: 0 | M15: =M14+K15 -> 43662 | O15: 43662 | P15: 27492 | Q15: =O15-P15 -> 16170
A16: Higher rate | B16: =IF(Summary!$F$6="Yes",I16,J16) -> 0.4 | C16: =E15 -> 37700 | D16: to | E16: =IF(Summary!$F$6="Yes",K16,L16)+E15 -> 37700 | I16: 0.42 | J16: 0.4 | K16: 31338 | L16: 0 | M16: =K16+M15 -> 75000
A17: Advanced Rate | B17: =IF(Summary!$F$6="Yes",I17,J17) -> 0 | C17: =E16 -> 37700 | E17: =IF(Summary!$F$6="Yes",K17,L17) -> 125140 | I17: 0.45 | J17: 0 | K17: 125140 | L17: 125140
A18: =IF(Summary!F6=Summary!AA3,"Top Rate","Additional Rate") -> Additional Rate | B18: =IF(Summary!$F$6="Yes",I18,J18) -> 0.45 | C18: Over | E18: =IF(Summary!$F$6="Yes",K18,L18) -> 0 | I18: 0.48 | J18: 0.45
A20: Dividends - Non devolved | I20: Update this table, not the info on the left
A21: Basic Rate | F21: 37700
A22: Higher Rate | F22: 112300
A24: Dividends
A25: Zero Rate | B25: 0
A26: Basic Rate | B26: 0.0875
A27: Higher Rate | B27: 0.3375 | I27: Suicide Code
A28: Additional Rate | B28: 0.3935 | I28: =TODAY() -> 2025-04-02
I29: 2026-04-05
A30: Divi Allowance | B30: 500
A33: Corporation Tax
A34: Small Profits Rate | B34: 50000 | C34: 0.19
A35: Marginal Rate | C35: 0.265
A36: Main Rate | B36: 250000 | C36: 0.25
A38: National Insurance
A39: £ per week | B39: £ per week | C39: £ annually
A40: Lower earnings limit, primary Class 1 | B40: 120 | C40: =B40*52 -> 6240
A41: Upper earnings limit, primary Class 1 | C41: 50270
A42: Primary threshold | C42: 12570 | E42: =C41-C42 -> 37700
A43: Secondary threshold | C43: 5000
A44: Employees’ primary Class 1 rate between primary threshold and upper earnings limit | B44: 0.08
A45: Employees’ primary Class 1 rate above upper earnings limit | B45: 0.02
A46: Employers’ secondary Class 1 rate above secondary threshold | B46: 0.15

Sheet Workings(Inc Tax) (hidden)
B1: Existing Position | H1: After new contribution
B3: Taxable Income | F3: =Summary!F10 -> 0 | H3: Taxable Income | L3: =Summary!F29 -> 0
C5: Allowances | D5: Still to tax | E5: Allowance balance | F5: tax_sal_bandx_pre | I5: Allowances | J5: Still to tax | K5: Allowance balance
B6: Tax Free | C6: =' Tax'!E21 -> 12570 | D6: =F3 -> 0 | E6: =MAX(0,C6-F6) -> 12570 | F6: =IF(F3<C6,F3,C6) -> 0 | H6: TaxFree | I6: =' Tax'!M21 -> 12570 | J6: =L3 -> 0 | K6: =MAX(0,I6-L6) -> 12570 | L6: =IF(L3<I6,L3,I6) -> 0
B7: Starter Rate | C7: ='Rates and Allowances'!E13-'Rates and Allowances'!C13 -> 0 | D7: =F3-F6 -> 0 | E7: 0 | F7: =MIN(D7,C7) -> 0 | H7: Starter Rate | I7: ='Rates and Allowances'!E13-'Rates and Allowances'!C13 -> 0 | J7: =L3-L6 -> 0 | K7: 0 | L7: =MIN(J7,I7) -> 0
B8: Basic Rate | C8: ='Rates and Allowances'!E14-'Rates and Allowances'!C14+Summary!K8 -> 37700 | D8: =MAX(0,D7-F7) -> 0 | E8: 37700 | F8: 0 | H8: Basic Rate | I8: ='Rates and Allowances'!E14-'Rates and Allowances'!C14+Summary!K31 -> 37700 | J8: =MAX(0,J7-L7) -> 0 | K8: 37700 | L8: =MIN(J8,I8) -> 0
B9: Intermediate Rate | C9: ='Rates and Allowances'!E15-'Rates and Allowances'!C15 -> 0 | D9: =MAX(0,D8-F8) -> 0 | E9: 0 | F9: 0 | H9: Intermediate Rate | I9: ='Rates and Allowances'!E15-'Rates and Allowances'!C15 -> 0 | J9: =MAX(0,J8-L8) -> 0 | K9: 0 | L9: 0
B10: Higher Rate | C10: ='Rates and Allowances'!E16-'Rates and Allowances'!C16 -> 0 | D10: =MAX(0,D9-F9) -> 0 | E10: 0 | F10: 0 | H10: Higher Rate | I10: ='Rates and Allowances'!E16-'Rates and Allowances'!C16 -> 0 | J10: =MAX(0,J9-L9) -> 0 | K10: 0 | L10: 0
B11: Advanced Rate | C11: ='Rates and Allowances'!E17-'Rates and Allowances'!C17 -> 87440 | D11: =MAX(0,D10-F10) -> 0 | E11: 87440 | F11: 0 | H11: Advanced Rate | I11: ='Rates and Allowances'!E17-'Rates and Allowances'!C17 -> 87440 | J11: =MAX(0,J10-L10) -> 0 | K11: 87440 | L11: 0
B12: Additional Rate > | C12: ='Rates and Allowances'!E18+Summary!K8 -> 0 | D12: =MAX(0,D11-F11) -> 0 | E12: 0 | F12: =MIN(D12,C12) -> 0 | H12: Additional Rate > | I12: ='Rates and Allowances'!E18+Summary!K31 -> 0 | J12: =MAX(0,J11-L11) -> 0 | K12: 0 | L12: 0
B16: Dividend | F16: =Summary!F12 -> 0 | H16: Dividend | L16: =Summary!F31 -> 0
B17: Tax Free | C17: =MAX(0,E6) -> 12570 | D17: =F16 -> 0 | E17: =MIN(E6,E6-F17)*0+MAX(0,C17-D17) -> 12570 | F17: =MIN(C17,D17) -> 0 | H17: Tax Free | I17: =MAX(0,K6) -> 12570 | J17: =L16 -> 0 | K17: =MIN(K6,K6-L17)*0+MAX(0,I17-J17) -> 12570 | L17: =MIN(I17,J17) -> 0
B18: Divi Allowance | C18: ='Rates and Allowances'!B30 -> 500 | D18: =D17-F17 -> 0 | F18: =MIN(C18,D18) -> 0 | H18: Divi Allowance | I18: ='Rates and Allowances'!B30 -> 500 | J18: =J17-L17 -> 0 | L18: =MIN(I18,J18) -> 0
B19: Basic Rate | C19: =IF((F7+C18)>C29,MAX(0,(E7-F18)),C29-(F7+C18))*0+MAX(0,(E7-C18+IF(D7<C29,MIN(C29-D7,C29-'Rates and Allowances'!E13),0))) -> 37200 | D19: =D18-F18 -> 0 | E19: =MIN(E7,E7-F18)*0+MAX(0,C19-D19) -> 37200 | F19: =MIN(C19,D19) -> 0 | H19: Basic Rate | I19: =IF((L7+I18)>I29,MAX(0,(K7-L18)),I29-(L7+I18))*0+MAX(0,(K7-I18+IF(J7<I29,MIN(I29-J7,I29-'Rates and Allowances'!E13),0))) -> 37200 | J19: =J18-L18 -> 0 | K19: =MIN(K7,K7-L18)*0+MAX(0,I19-J19) -> 37200 | L19: =MIN(I19,J19) -> 0
B20: Higher Rate | C20: =MAX(0,SUM(E6:E11)-SUM(C17:C19)) -> 87440 | D20: =D19-F19 -> 0 | E20: =MIN(0,C20-D20)*0+MAX(0,C20-D20) -> 87440 | F20: =MIN(D20,C20) -> 0 | H20: Higher Rate | I20: =MAX(0,SUM(K6:K11)-SUM(I17:I19)) -> 87440 | J20: =J19-L19 -> 0 | K20: =MIN(0,I20-J20)*0+MAX(0,I20-J20) -> 87440 | L20: =MIN(J20,I20) -> 0
B21: Additional Rate > | C21: =C12 -> 0 | D21: =D20-F20 -> 0 | E21: 0 | F21: =D21 -> 0 | H21: Additional Rate > | I21: =I12 -> 0 | J21: =J20-L20 -> 0 | K21: 0 | L21: =J21 -> 0
B28: Divi Bands | H28: Divi Bands
B29: Basic Rate | C29: ='Rates and Allowances'!F21+Summary!K8 -> 37700 | H29: Basic Rate | I29: ='Rates and Allowances'!F21+Summary!K31 -> 37700

Sheet Summary
A1: Individuals age | D1: Extracting Company Profits Tool built by M&G | Q1: Tax Year 2025/26
A2: Between 6 April 1938 and 5 April 1948
Q3: ='New Format for output'!A1 -> Short Summary | AA3: Yes
D4: Pre change position | AA4: No
I5: Gross value of individuals pension contributions | R5: ='New Format for output'!B2 -> Pre Change | T5: ='New Format for output'!D2 -> After change | V5: ='New Format for output'!F2 -> Difference
D6: Scottish Tax Payer | F6: No | I6: Paid gross e.g.OPS, RACs, AVCs | K6: 0
Q7: ='New Format for output'!A4 -> Individual Bank Account | R7: ='New Format for output'!B4 -> 0 | T7: ='New Format for output'!D4 -> 0 | V7: ='New Format for output'!F4 -> 0 | X7: ='New Format for output'!G4 -> No change
D8: Available Profits | F8: 0 | I8: Relief at Source e.g PP,GPP | K8: 0 | Q8: ='New Format for output'!A5 -> Company Bank Account | R8: ='New Format for output'!B5 -> 0 | T8: ='New Format for output'!D5 -> 0 | V8: ='New Format for output'!F5 -> 0 | X8: ='New Format for output'!G5 -> No change
Q9: ='New Format for output'!A6 -> Pension Contributions | R9: ='New Format for output'!B6 -> 0 | T9: ='New Format for output'!D6 -> 0 | V9: ='New Format for output'!F6 -> 0 | X9: ='New Format for output'!G6 -> No change
D10: Salary Paid | F10: 0 | Q10: ='New Format for output'!A7 -> HMRC total take | R10: ='New Format for output'!B7 -> 0 | T10: ='New Format for output'!D7 -> 0 | V10: ='New Format for output'!F7 -> 0 | X10: ='New Format for output'!G7 -> No change
D12: Dividends Paid | F12: 0 | I12: Employer Contributions | K12: 0 | Q12: ='New Format for output'!A10 -> Detailed View
R14: ='New Format for output'!B11 -> Pre Change | T14: ='New Format for output'!D11 -> After change | V14: ='New Format for output'!F11 -> Difference
Q15: ='New Format for output'!A12 -> Individual
D16: Change (use a - for reductions)
Q17: ='New Format for output'!A14 -> Salary | R17: ='New Format for output'!B14 -> 0 | T17: ='New Format for output'!D14 -> 0 | V17: ='New Format for output'!F14 -> 0 | X17: ='New Format for output'!G14 -> No change
Q18: ='New Format for output'!A15 -> Plus Dividend received | R18: ='New Format for output'!B15 -> 0 | T18: ='New Format for output'!D15 -> 0 | V18: ='New Format for output'!F15 -> 0 | X18: ='New Format for output'!G15 -> No change
D19: Salary Paid | F19: 0 | I19: Paid gross e.g.OPS, RACs, AVCs | K19: 0 | M19: =IF(K29<0,"Total pension cannot be negative","" ) ->  | Q19: ='New Format for output'!A16 -> Less Income Tax | R19: ='New Format for output'!B16 -> 0 | T19: ='New Format for output'!D16 -> 0 | V19: ='New Format for output'!F16 -> 0 | X19: ='New Format for output'!G16 -> No change
Q20: ='New Format for output'!A17 -> Less National Insurance | R20: ='New Format for output'!B17 -> 0 | T20: ='New Format for output'!D17 -> 0 | V20: ='New Format for output'!F17 -> 0 | X20: ='New Format for output'!G17 -> No change
D21: Dividends Paid | F21: 0 | I21: Relief at Source e.g PP,GPP | K21: 0 | M21: =IF(K31<0,"Total pension cannot be negative","" ) ->  | Q21: ='New Format for output'!A18 -> Less Contributions gross | R21: ='New Format for output'!B18 -> 0 | T21: ='New Format for output'!D18 -> 0 | V21: ='New Format for output'!F18 -> 0 | X21: ='New Format for output'!G18 -> No change
Q22: ='New Format for output'!A19 -> Net Income | R22: ='New Format for output'!B19 -> 0 | T22: ='New Format for output'!D19 -> 0 | V22: ='New Format for output'!F19 -> 0 | X22: ='New Format for output'!G19 -> No change
Q23: ='New Format for output'!A20 -> Less Contributions paid net | R23: ='New Format for output'!B20 -> 0 | T23: ='New Format for output'!D20 -> 0 | V23: ='New Format for output'!F20 -> 0 | X23: ='New Format for output'!G20 -> No change
Q24: ='New Format for output'!A21 -> Cash remaining | R24: ='New Format for output'!B21 -> 0 | T24: ='New Format for output'!D21 -> 0 | V24: ='New Format for output'!F21 -> 0 | X24: ='New Format for output'!G21 -> No change
I25: Employer Contributions | K25: 0
Q26: ='New Format for output'!A23 -> Employer
D27: After change
Q28: ='New Format for output'!A25 -> Available Profits | R28: ='New Format for output'!B25 -> 0 | T28: ='New Format for output'!D25 -> 0 | V28: ='New Format for output'!F25 -> 0 | X28: ='New Format for output'!G25 -> No change
D29: Salary | F29: =F10+F19 -> 0 | I29: Paid gross e.g.OPS, RACs, AVCs | K29: =K6+K19 -> 0 | Q29: ='New Format for output'!A26 -> Less Dividend Paid | R29: ='New Format for output'!B26 -> 0 | T29: ='New Format for output'!D26 -> 0 | V29: ='New Format for output'!F26 -> 0 | X29: ='New Format for output'!G26 -> No change
A30: Increase by | Q30: ='New Format for output'!A27 -> Less Employer Pension Contribution | R30: ='New Format for output'!B27 -> 0 | T30: ='New Format for output'!D27 -> 0 | V30: ='New Format for output'!F27 -> 0 | X30: ='New Format for output'!G27 -> No change
A31: Reduce by | D31: Dividends | F31: =F12+F21 -> 0 | I31: Relief at Source e.g PP,GPP | K31: =K8+K21 -> 0 | Q31: ='New Format for output'!A28 -> Less Corporation Tax | R31: ='New Format for output'!B28 -> 0 | T31: ='New Format for output'!D28 -> 0 | V31: ='New Format for output'!F28 -> 0 | X31: ='New Format for output'!G28 -> No change
Q32: ='New Format for output'!A29 -> Less Salary Paid | R32: ='New Format for output'!B29 -> 0 | T32: ='New Format for output'!D29 -> 0 | V32: ='New Format for output'!F29 -> 0 | X32: ='New Format for output'!G29 -> No change
I33: Employer Contributions | K33: =K12+K25 -> 0 | Q33: ='New Format for output'!A30 -> Less Employers National Insurance | R33: ='New Format for output'!B30 -> 0 | T33: ='New Format for output'!D30 -> 0 | V33: ='New Format for output'!F30 -> 0 | X33: ='New Format for output'!G30 -> No change
Q34: ='New Format for output'!A31 -> Profit remaining | R34: ='New Format for output'!B31 -> 0 | T34: ='New Format for output'!D31 -> 0 | V34: ='New Format for output'!F31 -> 0 | X34: ='New Format for output'!G31 -> No change
D36: Assumed rate of tax on pension income | G36: 0.2 | I36: Reduction in individuals bank account | K36: =IF(V7<=0,-V7,0) -> 0 | M36: =IF(V7>0,"Bank account has increased","" ) -> 
I37: Increase in pension provision | K37: =V37 -> 0 | Q37: ='New Format for output'!A34 -> Pension Contributions | R37: ='New Format for output'!B34 -> 0 | T37: ='New Format for output'!D34 -> 0 | V37: ='New Format for output'!F34 -> 0 | X37: ='New Format for output'!G34 -> No change
I38: Amount after PCLS and tax | K38: =K37-(K37*0.75*G36) -> 0
I39: "Return" on bank account reduction | K39: =IF(K36=0,"No reduction",((K38/K36)-1)) -> No reduction
D41: This tool will enable you to sit with a client and discuss the different options that they have for extracting profits from their business. You can input a client's current remuneration structure and highlight the difference adjusting this structure can benefit them and possibly mitigate the tax and national insurance payable to HMRC. The above is based on our understanding of current taxation, legislation and HM Revenue & Customs practice all of which is subject to change without notice. Every care has been taken as to its accuracy, but it must be appreciated that neither M&G nor its representatives can accept any responsibility for loss, however caused, suffered by any person who has acted or refrained from acting as a result of material contained in this calculator. Please note that the tool uses Category A National Insurance. Any employment allowance which may be available is not taken into account. The employment allowance is not available for sole owner/directors. Please note, this tool will cease to operate at the end of the tax year displayed above. Tax legislation states that that the personal allowance may be deducted in the way which will result in the greatest reduction in the taxpayer's liability to income tax. The calculator however proceeds on the basis that it is offset firstly against non-savings income, then savings income and then dividend income. In particular circumstances, a different order may produce a more beneficial result for the individual.
Q52: Cash Flows
R56: Pre Change | T56: After change | V56: Difference
Q57: Individual
Q59: Salary | R59: =F10 -> 0 | T59: =F29 -> 0 | V59: =T59-R59 -> 0
Q60: Plus Dividend received | R60: =F12 -> 0 | T60: =F31 -> 0 | V60: =T60-R60 -> 0
Q61: Less Income Tax | R61: =' Tax'!F43 -> 0 | T61: =' Tax'!M43 -> 0 | V61: 0
Q62: Less National Insurance | R62: =' Tax'!F54 -> 0 | T62: =' Tax'!M54 -> 0 | V62: 0
Q63: Less Contributions gross | R63: =K6 -> 0 | T63: =K29 -> 0 | V63: 0
Q64: Net Income | R64: =R59+R60-R61-R62-R63 -> 0 | T64: =T59+T60-T61-T62-T63 -> 0 | V64: 0
E65: =SUM(J49:J50) -> 0 | Q65: Less Contributions paid net | R65: =K8*(1-'Rates and Allowances'!B14) -> 0 | T65: =K31*(1-'Rates and Allowances'!B14) -> 0 | V65: 0 | AA65: =10395+K31 -> 10395
Q66: Cash remaining | R66: =R64-R65 -> 0 | S66: =IF(R66<0,"Warning Cashflow","") ->  | T66: =T64-T65 -> 0 | V66: 0 | X66: Personal Bank Account
Q68: Employer
Q70: Available Profits | R70: =F8 -> 0 | T70: =R70 -> 0 | V70: 0
Q71: Less Dividend Paid | R71: =F12 -> 0 | T71: =F31 -> 0 | V71: 0
Q72: Less Employer Pension Contribution | R72: =K12 -> 0 | T72: =K33 -> 0 | V72: 0
Q73: Less Corporation Tax | R73: ='Corporation Tax'!E17 -> 0 | T73: ='Corporation Tax'!L17 -> 0 | V73: 0
Q74: Less Salary Paid | R74: =F10 -> 0 | T74: =F29 -> 0 | V74: 0
Q75: Less Employers National Insurance | R75: =' Tax'!F79 -> 0 | T75: =' Tax'!M79 -> 0 | V75: 0
D77: =Summary!F29+Summary!E65-Summary!K29-Summary!K31 -> 0 | Q77: Profit remaining | R77: =R70-R71-R72-R73-R74-R75 -> 0 | S77: =IF(R77<0,"Warning Cashflow","") ->  | T77: =T70-T71-T72-T73-T74-T75 -> 0 | V77: 0 | X77: Business Bank Account
Q80: Pension Contributions | R80: =K12+K6+K8 -> 0 | T80: =K25+K12+K19+K6+K21+K8 -> 0 | V80: 0
Q90: HMRC total take | R90: =R75+R73+R62+R61-(K8-R65) -> 0 | T90: =T75+T73+T62+T61-(K31-T65) -> 0 | V90: 0 | X90: HMRC's Bank Account
R99: Individual
R100: Before | S100: After
Q101: Pension | R101: =K6+K8+K12 -> 0 | S101: =K6+K8+K19+K21+K12+K25 -> 0
Q102: Tax/NI Paid to HMRC | R102: =R61+R62 -> 0 | S102: =T61+T62 -> 0
Q103: In bank account | R103: =R64-R65 -> 0 | S103: =T64-T65 -> 0
R109: Pension | S109: Tax/NI Paid to HMRC | T109: In bank account
Q110: Before | R110: =R101 -> 0 | S110: =R102 -> 0 | T110: =R103 -> 0
Q111: After | R111: =S101 -> 0 | S111: =S102 -> 0 | T111: =S103 -> 0

Sheet Tax
B1: Extracting Company Profits Tool built by M&G | L1: =Summary!Q1 -> Tax Year 2025/26
B2: Pre change Position | I2: After change Position
B4: Individual | I4: Individual
Q5: KEEP
B6: Allowances | I6: Allowances
B7: Adjusted Net Income (for allowance purposes) | C7: =Summary!F10+Summary!F12-Summary!K6-Summary!K8 -> 0 | I7: =B7 -> Adjusted Net Income (for allowance purposes) | J7: =Summary!F29+Summary!F31-Summary!K29-Summary!K31 -> 0 | Q7: =C7-'Rates and Allowances'!B3 -> -100000 | R7: =J7-'Rates and Allowances'!B3 -> -100000
B9: Personal Allowance | C9: ='Rates and Allowances'!B2 -> 12570 | I9: =B9 -> Personal Allowance | J9: =C9 -> 12570
B10: Adjustment | C10: =IF(Q7<1,0,(IF(Q7>(2*'Rates and Allowances'!B2),-C9,MAX(-C9,Q7/-2)))) -> 0 | I10: =B10 -> Adjustment | J10: =IF(R7<1,0,(IF(R7>(2*'Rates and Allowances'!B2),-J9,MAX(-J9,R7/-2)))) -> 0
B14: Total Allowance | C14: =C9+C10 -> 12570 | I14: =B14 -> Total Allowance | J14: =J9+J10 -> 12570
B16: Tax Calculation | I16: =B16 -> Tax Calculation
B18: Income | E18: =Summary!F10+Summary!F12 -> 0 | I18: =B18 -> Income | M18: =Summary!F29+Summary!F31 -> 0
B19: Less | I19: =B19 -> Less
B20: Contributions Paid Gross | C20: =Summary!K6 -> 0 | I20: =B20 -> Contributions Paid Gross | L20: =Summary!K29 -> 0
B21: Allowance | C21: =' Tax'!C14 -> 12570 | E21: =SUM(C20:C21) -> 12570 | I21: =B21 -> Allowance | L21: =J14 -> 12570 | M21: =SUM(L20:L21) -> 12570
B22: Taxable Income | E22: =MAX(0,E18-E21) -> 0 | I22: =B22 -> Taxable Income | M22: =MAX(0,M18-M21) -> 0
B25: Income - Salary | C25: =Summary!F10 -> 0 | I25: =B25 -> Income - Salary | J25: =Summary!F29 -> 0
B26: =IF(Summary!$F$6=Summary!$AA$3,'Rates and Allowances'!A13,"") ->  | C26: ='Workings(Inc Tax)'!F7 -> 0 | D26: @ | E26: ='Rates and Allowances'!B13 -> 0 | F26: =C26*E26 -> 0 | I26: =IF(Summary!$F$6=Summary!$AA$3,'Rates and Allowances'!A13,"") ->  | J26: ='Workings(Inc Tax)'!L7 -> 0 | K26: @ | L26: =E26 -> 0 | M26: =J26*L26 -> 0
B27: =IF(Summary!$F$6=Summary!$AA$3,'Rates and Allowances'!A14,"") ->  | C27: =IF(Summary!F6=Summary!AA4,0,'Workings(Inc Tax)'!F8) -> 0 | D27: @ | E27: ='Rates and Allowances'!B14 -> 0.2 | F27: 0 | I27: =IF(Summary!$F$6=Summary!$AA$3,'Rates and Allowances'!A14,"") ->  | J27: =IF(Summary!F6=Summary!AA4,0,'Workings(Inc Tax)'!L8) -> 0 | K27: @ | L27: ='Rates and Allowances'!B14 -> 0.2 | M27: 0
B28: =IF(Summary!$F$6=Summary!$AA$3,'Rates and Allowances'!A15,'Rates and Allowances'!A14) -> Basic rate | C28: =IF(Summary!$F$6=Summary!$AA$3,'Workings(Inc Tax)'!F9,'Workings(Inc Tax)'!F8) -> 0 | D28: @ | E28: =IF(Summary!$F$6=Summary!$AA$3,'Rates and Allowances'!B15,'Rates and Allowances'!B14) -> 0.2 | F28: 0 | I28: =B28 -> Basic rate | J28: =IF(Summary!$F$6=Summary!$AA$3,'Workings(Inc Tax)'!L9,'Workings(Inc Tax)'!L8) -> 0 | K28: @ | L28: =IF(Summary!F6=Summary!AA4,'Rates and Allowances'!B14,'Rates and Allowances'!B15) -> 0.2 | M28: =J28*L28 -> 0
B29: ='Rates and Allowances'!A16 -> Higher rate | C29: =IF(Summary!$F$6=Summary!$AA$3,'Workings(Inc Tax)'!F10,'Workings(Inc Tax)'!F11) -> 0 | D29: @ | E29: ='Rates and Allowances'!B16 -> 0.4 | F29: 0 | I29: =B29 -> Higher rate | J29: =IF(Summary!$F$6=Summary!$AA$3,'Workings(Inc Tax)'!L10,'Workings(Inc Tax)'!L11) -> 0 | K29: @ | L29: =E29 -> 0.4 | M29: =J29*L29 -> 0
B30: =IF(Summary!$F$6=Summary!$AA$3,'Rates and Allowances'!A17,'Rates and Allowances'!A18) -> Additional Rate | C30: =IF(Summary!$F$6=Summary!$AA$3,'Workings(Inc Tax)'!F11,'Workings(Inc Tax)'!D12) -> 0 | D30: @ | E30: =IF(Summary!$F$6=Summary!$AA$3,'Rates and Allowances'!B17,'Rates and Allowances'!B18) -> 0.45 | F30: 0 | I30: =B30 -> Additional Rate | J30: =IF(Summary!$F$6=Summary!$AA$3,'Workings(Inc Tax)'!L11,'Workings(Inc Tax)'!J12) -> 0 | K30: @ | L30: =E30 -> 0.45 | M30: =J30*L30 -> 0
B31: =IF(Summary!$F$6=Summary!$AA$3,'Rates and Allowances'!A18,"") ->  | C31: =IF(Summary!$F$6=Summary!$AA$3,'Workings(Inc Tax)'!D12,0) -> 0 | D31: @ | E31: =IF(Summary!$F$6=Summary!$AA$3,'Rates and Allowances'!B18,'Rates and Allowances'!B19) -> 0 | F31: 0 | G31: =SUM(F26:F31) -> 0 | J31: =IF(Summary!$F$6=Summary!$AA$3,'Workings(Inc Tax)'!J12,0) -> 0 | K31: @ | L31: =IF(Summary!M9=Summary!AH7,'Rates and Allowances'!I18,'Rates and Allowances'!I19) -> 0.48 | M31: =J31*L31 -> 0 | N31: =SUM(M26:M31) -> 0
B33: Income - Dividend | C33: =Summary!F12 -> 0 | I33: =B33 -> Income - Dividend
B35: ='Rates and Allowances'!A25 -> Zero Rate | C35: ='Workings(Inc Tax)'!F18 -> 0 | D35: @ | E35: ='Rates and Allowances'!B25 -> 0 | F35: =C35*E35 -> 0 | I35: =B35 -> Zero Rate | J35: ='Workings(Inc Tax)'!L18 -> 0 | K35: @ | L35: =E35 -> 0 | M35: =J35*L35 -> 0
B36: ='Rates and Allowances'!A26 -> Basic Rate | C36: ='Workings(Inc Tax)'!F19 -> 0 | D36: @ | E36: ='Rates and Allowances'!B26 -> 0.0875 | F36: =C36*E36 -> 0 | I36: =B36 -> Basic Rate | J36: ='Workings(Inc Tax)'!L19 -> 0 | K36: @ | L36: =E36 -> 0.0875 | M36: =J36*L36 -> 0
B37: ='Rates and Allowances'!A27 -> Higher Rate | C37: ='Workings(Inc Tax)'!F20 -> 0 | D37: @ | E37: ='Rates and Allowances'!B27 -> 0.3375 | F37: =C37*E37 -> 0 | I37: =B37 -> Higher Rate | J37: ='Workings(Inc Tax)'!L20 -> 0 | K37: @ | L37: =E37 -> 0.3375 | M37: =J37*L37 -> 0
B38: ='Rates and Allowances'!A28 -> Additional Rate | C38: ='Workings(Inc Tax)'!F21 -> 0 | D38: @ | E38: ='Rates and Allowances'!B28 -> 0.3935 | F38: =C38*E38 -> 0 | G38: =SUM(F36:F38) -> 0 | I38: =B38 -> Additional Rate | J38: ='Workings(Inc Tax)'!L21 -> 0 | K38: @ | L38: =E38 -> 0.3935 | M38: =J38*L38 -> 0 | N38: =SUM(M36:M38) -> 0
B43: Tax to pay | F43: =G31+G38 -> 0 | I43: Tax to pay | M43: =N31+N38 -> 0
B47: Employee National Insurance | I47: National Insurance
B50: `- to Primary Threshold | C50: =MIN(C25,'Rates and Allowances'!C42) -> 0 | D50: @ | E50: 0 | F50: 0 | I50: `- to Primary Threshold | J50: =MIN(J25,'Rates and Allowances'!C42) -> 0 | K50: @ | L50: 0 | M50: 0
B51: ` - Primary Threshold to Upper Earnings Limit | C51: =IF(C25=0,0,IF(C50+'Rates and Allowances'!E42<' Tax'!C25,'Rates and Allowances'!E42,' Tax'!C25-' Tax'!C50)) -> 0 | D51: @ | E51: ='Rates and Allowances'!B44 -> 0.08 | F51: =C51*E51 -> 0 | I51: ` - Primary Threshold to Upper Earnings Limit | J51: =IF(J25=0,0,IF((J50+'Rates and Allowances'!E42)<' Tax'!J25,'Rates and Allowances'!E42,' Tax'!J25-' Tax'!J50)) -> 0 | K51: @ | L51: =E51 -> 0.08 | M51: =J51*L51 -> 0
B52: `- over Upper Earnings Limit | C52: =MAX(0,C25-'Rates and Allowances'!C41) -> 0 | D52: @ | E52: ='Rates and Allowances'!B45 -> 0.02 | F52: =C52*E52 -> 0 | I52: `- over Upper Earnings Limit | J52: =MAX(0,J25-'Rates and Allowances'!C41) -> 0 | K52: @ | L52: =E52 -> 0.02 | M52: =J52*L52 -> 0
E54: Total | F54: =SUM(F50:F53) -> 0 | L54: Total | M54: =SUM(M50:M53) -> 0
B58: Employer | H58: Employer
B60: Total profit | C60: =Summary!F8 -> 0 | I60: =B60 -> Total profit | J60: =C60 -> 0
B62: Salary Paid | C62: =C25 -> 0 | I62: =B62 -> Salary Paid | J62: =J25 -> 0
B63: NI Paid (see below for calculations) | C63: =F79 -> 0 | I63: NI Paid (see below for calculations) | J63: =M79 -> 0
B64: Pension Paid | C64: =Summary!K12 -> 0 | I64: Pension Paid | J64: =Summary!K33 -> 0
B66: Total Subject to Corporation Tax | C66: =MAX(0,C60-C62-C63-C64) -> 0 | I66: =B66 -> Total Subject to Corporation Tax | J66: =MAX(0,J60-J62-J63-J64) -> 0
B68: ='Corporation Tax'!A14 -> Small Profits Rate | C68: ='Corporation Tax'!B14 -> 0 | D68: @ | E68: ='Rates and Allowances'!C34 -> 0.19 | F68: =C68*E68 -> 0 | I68: =B68 -> Small Profits Rate | J68: ='Corporation Tax'!I14 -> 0 | K68: =D68 -> @ | L68: =E68 -> 0.19 | M68: =J68*L68 -> 0
B69: ='Corporation Tax'!A15 -> Marginal Rate | C69: ='Corporation Tax'!B15 -> 0 | D69: @ | E69: ='Rates and Allowances'!C35 -> 0.265 | F69: =C69*E69 -> 0 | I69: =B69 -> Marginal Rate | J69: ='Corporation Tax'!I15 -> 0 | K69: =D69 -> @ | L69: =E69 -> 0.265 | M69: =J69*L69 -> 0
B70: ='Corporation Tax'!A16 -> Main Rate | C70: ='Corporation Tax'!B16 -> 0 | D70: @ | E70: ='Rates and Allowances'!C36 -> 0.25 | F70: 0 | I70: Main Rate | J70: ='Corporation Tax'!I16 -> 0 | K70: @ | L70: 0.25 | M70: 0
F71: =SUM(F68:F70) -> 0 | M71: =SUM(M68:M70) -> 0
B73: Effective Rate of Corporation Tax | F73: =F71/C66 ->  | I73: Effective Rate of Corporation Tax | M73: =M71/J66 -> 
B75: Employer National Insurance | I75: Employer National Insurance
C76: Amount | E76: Rate | F76: NI Payable | J76: Amount | L76: Rate | M76: NI Payable
B77: `- to Secondary Threshold | C77: =MIN(C25,'Rates and Allowances'!$C$43) -> 0 | D77: @ | E77: 0 | F77: =C77*E77 -> 0 | I77: `- to Secondary Threshold | J77: =MIN(J25,'Rates and Allowances'!$C$43) -> 0 | K77: @ | L77: 0 | M77: =J77*L77 -> 0
B78: `- over Secondary Threshold | C78: =MAX(C25-'Rates and Allowances'!C43,0) -> 0 | D78: @ | E78: ='Rates and Allowances'!B46 -> 0.15 | F78: =C78*E78 -> 0 | I78: `- over Secondary Threshold | J78: =MAX(J25-'Rates and Allowances'!C43,0) -> 0 | K78: @ | L78: =E78 -> 0.15 | M78: =J78*L78 -> 0
F79: =SUM(F77:F78) -> 0 | M79: =SUM(M77:M78) -> 0

Sheet Corporation Tax (hidden)
A1: Pre change Position | H1: After change
A3: Taxable Profit (before Salary, NI and Employer Pension Contribution) | E3: =Summary!F8 -> 0 | H3: Taxable Profit (before Salary, NI and Employer Pension Contribution) | L3: =E3 -> 0
A5: Less Salary | D5: =Summary!F10 -> 0 | H5: Less Salary | K5: =Summary!F29 -> 0
A6: Employers National Insurance | D6: =' Tax'!F78 -> 0 | H6: Employers National Insurance | K6: =' Tax'!M78 -> 0
A7: Employer Pension Contribution | D7: =Summary!K12 -> 0 | E7: =SUM(D5:D7) -> 0 | H7: Employer Pension Contribution | K7: =Summary!K33 -> 0 | L7: =SUM(K5:K7) -> 0
A8: Taxable Profit | E8: =E3-E7 -> 0 | H8: Taxable Profit | L8: =L3-L7 -> 0
A10: NB: Dividends are not an allowable expense | H10: NB: Dividends are not an allowable expense
A14: ='Rates and Allowances'!A34 -> Small Profits Rate | B14: =IF(E8>'Rates and Allowances'!$B$36,0,(MIN('Rates and Allowances'!$B$34,'Corporation Tax'!E8))) -> 0 | C14: @ | D14: ='Rates and Allowances'!C34 -> 0.19 | E14: =B14*D14 -> 0 | H14: =A14 -> Small Profits Rate | I14: =IF(L8>'Rates and Allowances'!$B$36,0,(MIN('Rates and Allowances'!$B$34,'Corporation Tax'!L8))) -> 0 | J14: @ | K14: =D14 -> 0.19 | L14: =I14*K14 -> 0
A15: ='Rates and Allowances'!A35 -> Marginal Rate | B15: =IF(E8>'Rates and Allowances'!$B$36,0,MAX(0,'Corporation Tax'!E8-'Rates and Allowances'!$B$34)) -> 0 | C15: @ | D15: ='Rates and Allowances'!C35 -> 0.265 | E15: =B15*D15 -> 0 | H15: =A15 -> Marginal Rate | I15: =IF(L8>'Rates and Allowances'!$B$36,0,MAX(0,'Corporation Tax'!L8-'Rates and Allowances'!$B$34)) -> 0 | J15: @ | K15: =D15 -> 0.265 | L15: =I15*K15 -> 0
A16: ='Rates and Allowances'!A36 -> Main Rate | B16: =IF(E8>'Rates and Allowances'!$B$36,'Corporation Tax'!E8,0) -> 0 | C16: @ | D16: ='Rates and Allowances'!C36 -> 0.25 | E16: 0 | H16: =A16 -> Main Rate | I16: =IF(L8>'Rates and Allowances'!$B$36,'Corporation Tax'!L8,0) -> 0 | J16: @ | K16: 0.25 | L16: 0
A17: Tax to pay | E17: =MAX(0,SUM(E14:E16)) -> 0 | H17: Tax to pay | L17: =MAX(0,SUM(L14:L16)) -> 0

Sheet Graph Data (hidden)
B1: Pre change Position | C1: After change
A2: Income Tax | B2: =Summary!R61 -> 0 | C2: =Summary!T61 -> 0
A3: Employee NI | B3: =Summary!R62 -> 0 | C3: =' Tax'!M54 -> 0
A4: Employer NI | B4: =Summary!R75 -> 0 | C4: =' Tax'!M79 -> 0
A5: Corporation Tax | B5: =Summary!R73 -> 0 | C5: ='Corporation Tax'!L17 -> 0
A6: Profit remaining | B6: =Summary!R77 -> 0 | C6: =Summary!T77 -> 0
A7: Cash remaining | B7: =Summary!R66 -> 0 | C7: =Summary!T66 -> 0
A8: Pension Fund | B8: =Summary!K6+Summary!K8+Summary!K12 -> 0 | C8: =Summary!K29+Summary!K31+Summary!K33 -> 0
B10: Pre change Position | C10: After change
A11: Taxes and NI | B11: =B2+B3+B4+B5-(Summary!K8*'Rates and Allowances'!B13) -> 0 | C11: =C2+C3+C4+C5-((Summary!K31*'Rates and Allowances'!B13)) -> 0
A12: Cash and Profit | B12: =B7+B6 -> 0 | C12: =C7+C6 -> 0
A13: Pension | B13: =B8 -> 0 | C13: =C8 -> 0
B15: =SUM(B11:B14) -> 0 | C15: =SUM(C11:C14) -> 0

Sheet New Format for output (hidden)
A1: Short Summary | H1: Button to expand this
B2: Pre Change | D2: After change | F2: Difference
A4: Individual Bank Account | B4: =B21 -> 0 | D4: =D21 -> 0 | F4: =F21 -> 0 | G4: =IF((B4-D4)=0,"No change",(IF(AND(B4=0,D4>0),"Infinite Increase",(D4/B4)-1))) -> No change | L4: Individual | R4: Individual | U4: Company
A5: Company Bank Account | B5: =B31 -> 0 | D5: =D31 -> 0 | F5: =F31 -> 0 | G5: =IF((B5-D5)=0,"No change",(IF(AND(B5=0,D5>0),"Infinite Increase",(D5/B5)-1))) -> No change | L5: Before | M5: After | R5: Before | S5: After | U5: Before | V5: After
A6: Pension Contributions | B6: =B34 -> 0 | D6: =D34 -> 0 | F6: =F34 -> 0 | G6: =IF((B6-D6)=0,"No change",(IF(AND(B6=0,D6>0),"Infinite Increase",(D6/B6)-1))) -> No change | K6: Pension | L6: =B6 -> 0 | M6: =D6 -> 0 | Q6: Pension | R6: =L6 -> 0 | S6: 0
A7: =Summary!Q90 -> HMRC total take | B7: =Summary!R90 -> 0 | D7: =Summary!T90 -> 0 | F7: =Summary!V90 -> 0 | G7: =IF((B7-D7)=0,"No change",(IF(AND(B7=0,D7>0),"Infinite Increase",(D7/B7)-1))) -> No change | K7: Tax/NI Paid to HMRC | L7: =B16+B17-(B20/4) -> 0 | M7: =D16+D17-(D20/4) -> 0 | N7: In grey not to be displayed | Q7: Tax/NI Paid to HMRC | R7: 0 | S7: 0
K8: In bank account | L8: =B21 -> 0 | M8: =D21 -> 0 | Q8: In bank account | R8: 0 | S8: 0
Q9: Tax/NI Paid to HMRC | U9: =L15 -> 0 | V9: 0
A10: Detailed View | H10: Button to expand this | Q10: In Company Bank Account | U10: 0 | V10: 0
B11: =Summary!R56 -> Pre Change | D11: =Summary!T56 -> After change | F11: =Summary!V56 -> Difference | Q11: Cost of Remuneration | U11: 0 | V11: 0
A12: =Summary!Q57 -> Individual
L13: Company
A14: =Summary!Q59 -> Salary | B14: =Summary!R59 -> 0 | D14: =Summary!T59 -> 0 | F14: =Summary!V59 -> 0 | G14: =IF((B14-D14)=0,"No change",(IF(AND(B14=0,D14>0),"Infinite Increase",(D14/B14)-1))) -> No change | L14: Before | M14: After
A15: =Summary!Q60 -> Plus Dividend received | B15: =Summary!R60 -> 0 | D15: =Summary!T60 -> 0 | F15: =Summary!V60 -> 0 | G15: =IF((B15-D15)=0,"No change",(IF(AND(B15=0,D15>0),"Infinite Increase",(D15/B15)-1))) -> No change | K15: Tax/NI Paid to HMRC | L15: =B28+B30 -> 0 | M15: =D28+D30 -> 0
A16: =Summary!Q61 -> Less Income Tax | B16: =Summary!R61 -> 0 | D16: =Summary!T61 -> 0 | F16: =Summary!V61 -> 0 | G16: No change | K16: In Company Bank Account | L16: =B31 -> 0 | M16: =D31 -> 0
A17: =Summary!Q62 -> Less National Insurance | B17: =Summary!R62 -> 0 | D17: =Summary!T62 -> 0 | F17: =Summary!V62 -> 0 | G17: No change | K17: Cost of Remuneration | L17: =B27+B29+B26 -> 0 | M17: =D27+D29+D26 -> 0
A18: =Summary!Q63 -> Less Contributions gross | B18: =Summary!R63 -> 0 | D18: =Summary!T63 -> 0 | F18: =Summary!V63 -> 0 | G18: No change
A19: =Summary!Q64 -> Net Income | B19: =Summary!R64 -> 0 | D19: =Summary!T64 -> 0 | F19: =Summary!V64 -> 0 | G19: No change
A20: =Summary!Q65 -> Less Contributions paid net | B20: =Summary!R65 -> 0 | D20: =Summary!T65 -> 0 | F20: =Summary!V65 -> 0 | G20: No change
A21: =Summary!Q66 -> Cash remaining | B21: =Summary!R66 -> 0 | D21: =Summary!T66 -> 0 | F21: =Summary!V66 -> 0 | G21: No change
A23: =Summary!Q68 -> Employer
A25: =Summary!Q70 -> Available Profits | B25: =Summary!R70 -> 0 | D25: =Summary!T70 -> 0 | F25: =Summary!V70 -> 0 | G25: =IF((B25-D25)=0,"No change",(IF(AND(B25=0,D25>0),"Infinite Increase",(D25/B25)-1))) -> No change
A26: =Summary!Q71 -> Less Dividend Paid | B26: =Summary!R71 -> 0 | D26: =Summary!T71 -> 0 | F26: =Summary!V71 -> 0 | G26: No change
A27: =Summary!Q72 -> Less Employer Pension Contribution | B27: =Summary!R72 -> 0 | D27: =Summary!T72 -> 0 | F27: =Summary!V72 -> 0 | G27: No change
A28: =Summary!Q73 -> Less Corporation Tax | B28: =Summary!R73 -> 0 | D28: =Summary!T73 -> 0 | F28: =Summary!V73 -> 0 | G28: No change
A29: =Summary!Q74 -> Less Salary Paid | B29: =Summary!R74 -> 0 | D29: =Summary!T74 -> 0 | F29: =Summary!V74 -> 0 | G29: No change
A30: =Summary!Q75 -> Less Employers National Insurance | B30: =Summary!R75 -> 0 | D30: =Summary!T75 -> 0 | F30: =Summary!V75 -> 0 | G30: =IF((B30-D30)=0,"No change",(IF(AND(B30=0,D30>0),"Infinite Increase",(D30/B30)-1))) -> No change
A31: =Summary!Q77 -> Profit remaining | B31: =Summary!R77 -> 0 | D31: =Summary!T77 -> 0 | F31: =Summary!V77 -> 0 | G31: No change
A34: =Summary!Q80 -> Pension Contributions | B34: =Summary!R80 -> 0 | D34: =Summary!T80 -> 0 | F34: =Summary!V80 -> 0 | G34: =IF((B34-D34)=0,"No change",(IF(AND(B34=0,D34>0),"Infinite Increase",(D34/B34)-1))) -> No change
